bitfinex/quotes_SOLUSD_20250425
["timestamp","ask_amount","ask_price","bid_price","bid_amount"]
[1745577258443,39.92,153.89,153.86,17.29823421]
[1745577259338,39.92,153.89,153.86,10.81489204]
[1745577260833,39.92,153.89,153.82,0.03]
[1745577261037,39.92,153.89,153.85,10.81489204]
[1745577261217,39.92,153.89,153.86,10.81489204]
[1745577261814,39.92,153.89,153.85,10.81489204]
[1745577262140,39.92,153.89,153.85,17.31469045]
[1745577262553,39.92,153.89,153.85,6.49979841]
[1745577262744,39.92,153.89,153.85,17.31469045]
[1745577262920,39.92,153.89,153.85,6.49979841]
[1745577263427,0.14216157,153.88,153.85,10.81489204]
[1745577263624,26.0,153.86,153.82,0.03]
[1745577263829,26.0,153.86,153.83,17.31546055]
[1745577265347,26.0,153.84,153.82,0.03]
[1745577266431,26.0,153.84,153.82,17.34596235]
[1745577269938,26.0,153.86,153.83,10.81489204]
[1745577270255,26.0,153.86,153.84,10.81489204]
[1745577270754,26.0,153.86,153.85,10.81489204]
[1745577271947,26.0,153.86,153.85,17.31472954]
[1745577278950,26.0,153.86,153.85,10.81489204]
[1745577279447,26.0,153.86,153.85,17.31472954]
[1745577280363,26.0,153.88,153.85,17.31472954]
[1745577280661,13.72,153.91,153.87,10.81489204]
[1745577280835,13.72,153.91,153.88,10.81489204]
[1745577281031,26.0,153.89,153.88,10.81489204]
[1745577287264,26.0,153.89,153.88,6.91935385]
[1745577291982,26.0,153.9,153.88,6.91935385]
[1745577292359,26.0,153.9,153.87,6.91935385]
[1745577296376,26.0,153.9,153.86,13.41853924]
[1745577298602,26.0,153.88,153.86,13.41853924]
[1745577300286,103.07952355,153.93,153.86,13.41853924]
[1745577300287,13.783,153.93,153.87,6.91935385]
[1745577300492,13.783,153.93,153.91,6.91935385]
[1745577300685,0.063,153.93,153.92,6.91935385]
[1745577301219,26.063,153.93,153.92,6.91935385]
[1745577301417,0.063,153.93,153.91,6.91935385]
[1745577302007,0.063,153.93,153.92,6.91935385]
[1745577302205,26.063,153.93,153.92,6.91935385]
[1745577302722,26.063,153.93,153.91,6.91935385]
[1745577304621,26.063,153.93,153.92,6.91935385]
[1745577304923,0.063,153.93,153.92,6.91935385]
[1745577305385,0.063,153.93,153.91,13.41655241]
[1745577305591,6.98235385,153.93,153.89,13.41708853]
[1745577306114,0.063,153.93,153.89,13.41708853]
[1745577306290,0.063,153.93,153.9,6.91935385]
[1745577310026,0.063,153.93,153.87,6.49899265]
[1745577310232,32.91935385,153.91,153.87,6.91935385]
[1745577310595,32.91935385,153.91,153.86,15.06022091]
[1745577311117,32.91935385,153.91,153.87,6.91935385]
[1745577311327,32.91935385,153.92,153.87,6.91935385]
[1745577312113,26.0,153.92,153.87,6.91935385]
[1745577312330,33.12451542,153.93,153.88,6.91935385]
[1745577312631,32.91935385,153.92,153.88,6.91935385]
[1745577312926,32.91935385,153.92,153.87,6.91935385]
[1745577313099,32.91935385,153.92,153.87,13.41833675]
[1745577313300,7.06151542,153.91,153.87,6.91935385]
[1745577313495,6.91935385,153.9,153.86,6.91935385]
[1745577313696,6.91935385,153.89,153.85,6.91935385]
[1745577315115,32.91935385,153.88,153.83,6.50051523]
[1745577315319,32.91935385,153.88,153.83,13.41986908]
[1745577315625,32.91935385,153.88,153.84,6.91935385]
[1745577315810,32.91935385,153.88,153.83,13.41986908]
[1745577316326,26.0,153.92,153.87,6.91935385]
[1745577316503,26.0,153.92,153.88,6.91935385]
[1745577318232,26.0,153.92,153.89,6.49814802]
[1745577321223,32.91935385,153.92,153.89,6.49814802]
[1745577322917,26.0,153.9,153.89,6.49814802]
[1745577326444,0.063,153.93,153.9,6.3236]
[1745577326615,0.063,153.96,153.92,6.91935385]
[1745577326824,0.063,153.96,153.95,6.91935385]
[1745577327036,0.063,153.96,153.95,13.4149693]
[1745577331652,0.063,153.96,153.95,6.49561545]
[1745577332449,0.063,153.96,153.95,13.4149693]
[1745577332747,0.063,153.96,153.95,6.49561545]
[1745577335846,0.063,153.96,153.94,6.91935385]
[1745577336039,0.063,153.96,153.94,6.49602764]
[1745577336237,0.063,153.96,153.94,13.41538149]
[1745577337159,0.063,153.96,153.95,6.91935385]
[1745577338057,0.063,153.96,153.95,13.4149693]
[1745577338365,0.063,153.96,153.95,6.49561545]
[1745577340557,0.20516157,153.96,153.94,6.495915]
[1745577340855,7.12451542,153.96,153.94,6.495915]
[1745577341573,32.91935385,153.95,153.89,17.89679375]
[1745577341736,20.61935385,153.94,153.9,6.49772579]
[1745577341934,6.91935385,153.93,153.9,6.49772579]
[1745577342343,0.14216157,153.92,153.9,6.49772579]
[1745577342739,0.14216157,153.92,153.89,6.49814802]
[1745577343846,7.06151542,153.92,153.89,6.49814802]
[1745577345067,7.06151542,153.92,153.88,6.49857031]
[1745577345653,6.91935385,153.91,153.88,6.49857031]
[1745577346059,6.91935385,153.9,153.88,6.49857031]
[1745577346246,26.14216157,153.88,153.86,6.52925331]
[1745577346437,46.78151542,153.88,153.86,6.52925331]
[1745577346750,7.06151542,153.87,153.86,0.03]
[1745577348342,25.71116428,153.87,153.86,0.03]
[1745577348878,18.79181043,153.87,153.86,0.03]
[1745577349043,39.72,153.87,153.86,0.03]
[1745577349248,46.63935385,153.87,153.86,0.03]
[1745577350570,65.43116428,153.87,153.86,0.03]
[1745577353479,71.93015693,153.87,153.86,0.03]
[1745577353852,65.43116428,153.87,153.86,0.03]
[1745577354169,71.93015693,153.87,153.86,0.03]
[1745577355174,26.0,153.83,153.82,0.03]
[1745577355381,51.71116428,153.83,153.82,0.03]
[1745577355584,32.91935385,153.8,153.79,0.03]
[1745577355753,39.86216157,153.8,153.79,0.03]
[1745577356087,39.72,153.8,153.79,0.03]
[1745577361171,46.78151542,153.8,153.79,0.03]
[1745577362298,39.72,153.8,153.79,0.03]
[1745577363171,46.63935385,153.8,153.79,0.03]
[1745577363369,46.78151542,153.8,153.79,0.03]
[1745577364196,39.43116428,153.8,153.79,0.03]
[1745577365603,20.78151542,153.8,153.79,0.03]
[1745577366576,13.86216157,153.8,153.79,0.03]
[1745577366775,20.78151542,153.8,153.79,0.03]
[1745577368007,13.72,153.8,153.79,0.03]
[1745577368207,13.86216157,153.8,153.79,0.03]
[1745577368384,46.78151542,153.8,153.79,0.03]
[1745577369106,65.43116428,153.8,153.79,0.03]
[1745577369316,44.64964886,153.77,153.76,0.03]
[1745577369492,26.0,153.73,153.72,0.03]
[1745577369686,32.91935385,153.73,153.72,0.03]
[1745577370508,33.06151542,153.73,153.72,0.03]
[1745577371919,26.14216157,153.73,153.72,0.03]
[1745577372096,33.06151542,153.73,153.72,0.03]
[1745577373183,51.71116428,153.73,153.72,0.03]
[1745577373586,33.06151542,153.73,153.72,0.03]
[1745577380418,58.21607548,153.73,153.72,0.03]
[1745577380919,51.71116428,153.73,153.72,0.03]
[1745577381120,58.21607548,153.73,153.72,0.03]
[1745577381519,6.91935385,153.67,153.66,0.7820777]
[1745577381721,40.19116428,153.67,153.66,0.7820777]
[1745577382727,46.69861531,153.67,153.66,0.7820777]
[1745577383118,26.72811043,153.66,153.56,0.03]
[1745577383330,6.91935385,153.58,153.56,0.03]
[1745577383629,21.54151542,153.61,153.56,6.94935385]
[1745577383826,6.91935385,153.6,153.56,6.94935385]
[1745577384195,14.48,153.61,153.56,0.03]
[1745577384398,6.91935385,153.59,153.56,0.03]
[1745577384694,6.91935385,153.6,153.56,0.03]
[1745577386436,6.91935385,153.59,153.56,0.03]
[1745577386835,14.48,153.61,153.56,6.54211252]
[1745577387323,14.48,153.61,153.6,6.91935385]
[1745577387629,1.0,153.71,153.6,6.91935385]
[1745577387630,88.8599,153.72,153.6,34.59676925]
[1745577387796,6.91935385,153.7,153.66,6.91935385]
[1745577387992,6.91935385,153.7,153.65,6.91935385]
[1745577388197,6.91935385,153.69,153.64,6.91935385]
[1745577388503,6.91935385,153.68,153.61,1.5016]
[1745577388713,6.91935385,153.68,153.64,13.4279752]
[1745577389017,6.91935385,153.67,153.63,13.42834976]
[1745577389223,6.91935385,153.7,153.65,6.91935385]
[1745577389423,14.5,153.71,153.65,10.84332426]
[1745577389722,10.84332426,153.7,153.65,10.84332426]
[1745577390020,10.84332426,153.69,153.65,10.84332426]
[1745577390243,14.5,153.71,153.66,10.84332426]
[1745577390446,25.34332426,153.71,153.66,10.84332426]
[1745577390611,10.84332426,153.7,153.66,10.84332426]
[1745577390802,10.84332426,153.7,153.65,17.35154189]
[1745577391042,10.84332426,153.68,153.64,6.5832]
[1745577391223,10.84332426,153.65,153.61,1.5016]
[1745577391424,0.14216157,153.67,153.61,1.5016]
[1745577391631,10.84332426,153.64,153.61,1.5016]
[1745577392815,10.84332426,153.6,153.56,0.03]
[1745577394127,10.84332426,153.59,153.56,0.03]
[1745577394343,10.84332426,153.58,153.56,0.03]
[1745577394808,10.84332426,153.57,153.56,0.03]
[1745577395005,14.5,153.58,153.56,0.03]
[1745577395228,10.84332426,153.57,153.56,0.03]
[1745577395812,29.63513469,153.57,153.56,0.03]
[1745577397952,29.63513469,153.57,153.56,0.03]
[1745577399954,29.63513469,153.57,153.49,18.91628988]
[1745577400150,10.84332426,153.55,153.51,10.84332426]
[1745577400450,10.84332426,153.56,153.52,10.84332426]
[1745577400823,10.84332426,153.55,153.49,8.07296562]
[1745577401348,0.14216157,153.57,153.51,17.35717504]
[1745577401530,10.84332426,153.56,153.51,17.35717504]
[1745577401850,0.14216157,153.57,153.52,10.84332426]
[1745577401851,10.98548583,153.57,153.52,10.84332426]
[1745577402347,10.84332426,153.56,153.52,10.84332426]
[1745577403260,10.84332426,153.56,153.49,1.5579]
[1745577403261,10.84332426,153.53,153.49,0.03]
[1745577403549,0.14216157,153.55,153.49,0.03]
[1745577403933,10.84332426,153.5,153.49,0.03]
[1745577404738,18.64964886,153.56,153.49,0.03]
[1745577404938,0.14216157,153.55,153.49,0.03]
[1745577405137,10.84332426,153.52,153.49,0.03]
[1745577405337,10.84332426,153.53,153.49,0.03]
[1745577405538,14.5,153.57,153.49,10.87332426]
[1745577405749,10.84332426,153.54,153.49,10.87332426]
[1745577406355,10.84332426,153.53,153.49,10.87332426]
[1745577406663,10.84332426,153.53,153.49,0.03]
[1745577407035,10.84332426,153.52,153.49,0.03]
[1745577407246,10.84332426,153.5,153.49,0.03]
[1745577407443,14.5,153.57,153.49,0.03]
[1745577407444,0.14216157,153.54,153.49,0.03]
[1745577407640,10.84332426,153.52,153.49,0.03]
[1745577409953,10.84332426,153.53,153.49,0.03]
[1745577410159,10.84332426,153.52,153.49,0.03]
[1745577411338,10.84332426,153.51,153.49,0.03]
[1745577412870,10.84332426,153.5,153.49,0.03]
[1745577413340,6.65519202,153.54,153.49,0.03]
[1745577413541,10.84332426,153.5,153.49,0.03]
[1745577414376,10.98548583,153.5,153.49,0.03]
[1745577415254,36.14979267,153.5,153.49,0.03]
[1745577416163,10.84332426,153.43,153.4,1.6653]
[1745577416488,41.45095179,153.5,153.4,19.02740364]
[1745577416489,10.84332426,153.45,153.4,19.02740364]
[1745577416649,10.84332426,153.47,153.43,10.84332426]
[1745577416971,0.14216157,153.43,153.36,0.8895845]
[1745577417158,10.84332426,153.44,153.36,7.41010864]
[1745577417470,10.84332426,153.4,153.36,18.2534329]
[1745577418456,10.84332426,153.4,153.36,11.73290876]
[1745577418651,10.84332426,153.4,153.36,0.8895845]
[1745577418849,10.84332426,153.39,153.36,7.41012116]
[1745577419277,16.08216157,153.43,153.36,7.41012116]
[1745577419278,10.84332426,153.4,153.36,7.41012116]
[1745577419472,10.84332426,153.39,153.36,0.8895845]
[1745577419646,16.08216157,153.43,153.36,0.8895845]
[1745577419853,10.84332426,153.41,153.36,18.25349541]
[1745577420053,10.84332426,153.4,153.36,18.25349541]
[1745577420300,82.8,153.46,153.37,10.84332426]
[1745577420452,15.94,153.46,153.42,10.84332426]
[1745577420656,15.94,153.46,153.43,10.84332426]
[1745577420956,15.94,153.46,153.42,10.84332426]
[1745577421496,26.78332426,153.46,153.42,17.36128944]
[1745577421702,10.84332426,153.45,153.41,17.36170148]
[1745577422055,10.84332426,153.45,153.4,6.51888308]
[1745577422251,10.84332426,153.41,153.38,1.5545]
[1745577422580,10.84332426,153.4,153.38,1.5545]
[1745577422995,10.84332426,153.39,153.38,1.5545]
[1745577423294,10.84332426,153.39,153.36,0.8895845]
[1745577423496,10.84332426,153.37,153.36,0.8895845]
[1745577423663,41.94,153.4,153.36,18.25351387]
[1745577424011,41.94,153.4,153.37,10.84332426]
[1745577424284,52.78332426,153.4,153.36,18.25351387]
[1745577424585,41.94,153.4,153.37,10.84332426]
[1745577425085,41.94,153.4,153.36,18.25351387]
[1745577425672,10.84332426,153.41,153.36,18.25351387]
[1745577425673,26.0,153.44,153.39,10.84332426]
[1745577425996,10.84332426,153.42,153.38,10.84332426]
[1745577426198,36.84332426,153.42,153.38,10.84332426]
[1745577426499,10.84332426,153.4,153.36,7.41018961]
[1745577426678,10.84332426,153.4,153.36,18.25351387]
[1745577427169,10.84332426,153.39,153.36,0.8895845]
[1745577427372,10.84332426,153.37,153.36,0.8895845]
[1745577429923,0.14216157,153.34,153.32,0.1]
[1745577430220,36.84332426,153.33,153.32,0.1]
[1745577430590,36.98548583,153.33,153.32,0.1]
[1745577431210,55.49297312,153.33,153.32,0.1]
[1745577431408,36.84332426,153.31,153.3,0.03]
[1745577431717,52.80332426,153.31,153.3,0.03]
[1745577432092,26.80332426,153.31,153.3,0.03]
[1745577433017,52.80332426,153.31,153.3,0.03]
[1745577433220,26.80332426,153.31,153.3,0.03]
[1745577433428,52.94548583,153.31,153.3,0.03]
[1745577434217,93.64332426,153.36,153.3,0.03]
[1745577434415,10.84332426,153.33,153.3,0.03]
[1745577434608,26.0,153.32,153.3,0.03]
[1745577434810,15.96,153.35,153.3,10.87332426]
[1745577435113,10.84332426,153.35,153.3,0.03]
[1745577435495,10.84332426,153.35,153.3,10.87332426]
[1745577435719,10.84332426,153.34,153.3,17.3962314]
[1745577436000,108.8,153.36,153.31,12.50852426]
[1745577436311,93.64332426,153.36,153.31,12.50852426]
[1745577436505,119.64332426,153.36,153.31,12.50852426]
[1745577436698,108.8,153.36,153.31,12.50852426]
[1745577436900,119.64332426,153.36,153.31,12.50852426]
[1745577437311,26.0,153.36,153.32,17.42693474]
[1745577437517,15.74,153.41,153.35,17.42693474]
[1745577437720,17.42693474,153.4,153.35,23.94781349]
[1745577438331,26.0,153.26,153.06,1.6369]
[1745577438506,17.42693474,153.17,153.11,17.42693474]
[1745577438834,17.42693474,153.18,153.12,17.42693474]
[1745577439027,1.30408158,153.19,153.13,16.92693474]
[1745577439340,18.73101632,153.19,153.14,17.42693474]
[1745577439506,18.73101632,153.19,153.13,17.42693474]
[1745577439704,18.73101632,153.19,153.09,24.16819287]
[1745577439930,18.73101632,153.19,153.13,17.42693474]
[1745577440436,27.30408158,153.22,153.13,1.30582148]
[1745577440736,43.42693474,153.21,153.16,17.42693474]
[1745577440939,1.30408158,153.2,153.16,17.42693474]
[1745577441305,26.0,153.21,153.17,17.42693474]
[1745577441602,106.5456854,153.31,153.2,17.42693474]
[1745577441818,27.30408158,153.26,153.22,17.42693474]
[1745577442217,1.30408158,153.26,153.22,17.42693474]
[1745577442433,27.30408158,153.26,153.22,17.42693474]
[1745577442631,1.30408158,153.26,153.22,17.42693474]
[1745577442835,18.73101632,153.26,153.21,17.42693474]
[1745577443236,18.73101632,153.26,153.19,6.5277387]
[1745577443452,17.42693474,153.23,153.17,1.5216]
[1745577443619,1.30408158,153.22,153.18,17.42693474]
[1745577443823,17.42693474,153.21,153.17,8.04994371]
[1745577444014,17.42693474,153.23,153.18,17.42693474]
[1745577444212,1.30408158,153.22,153.18,17.42693474]
[1745577444535,18.73101632,153.22,153.17,18.94853474]
[1745577444721,17.42693474,153.21,153.17,1.5216]
[1745577445047,1.30408158,153.2,153.17,1.5216]
[1745577445334,1.30408158,153.2,153.17,8.05027563]
[1745577445537,1.30408158,153.21,153.17,25.47721037]
[1745577446234,1.30408158,153.21,153.17,18.94853474]
[1745577446558,18.73101632,153.21,153.17,1.5216]
[1745577446940,1.30408158,153.21,153.18,17.42693474]
[1745577447135,1.30408158,153.23,153.17,8.04994919]
[1745577447817,43.42693474,153.22,153.18,17.42693474]
[1745577448248,18.73101632,153.21,153.17,1.5216]
[1745577448615,17.42693474,153.2,153.17,1.5216]
[1745577449117,18.73101632,153.21,153.17,1.5216]
[1745577449319,1.30408158,153.21,153.17,1.5216]
[1745577449546,17.42693474,153.2,153.17,1.5216]
[1745577449715,1.30408158,153.19,153.17,1.5216]
[1745577449913,1.30408158,153.19,153.13,15.74]
[1745577449914,18.73101632,153.19,153.14,17.42693474]
[1745577450334,1.30408158,153.19,153.14,17.42693474]
[1745577450539,17.42693474,153.19,153.14,17.42693474]
[1745577450742,1.30408158,153.18,153.14,17.42693474]
[1745577451212,1.30408158,153.21,153.17,17.42693474]
[1745577451410,1.30408158,153.21,153.19,17.42693474]
[1745577452256,27.30408158,153.22,153.2,17.42693474]
[1745577452548,27.30408158,153.24,153.21,17.42693474]
[1745577452753,26.0,153.23,153.22,17.42693474]
[1745577452945,26.0,153.23,153.21,17.42693474]
[1745577453126,1.30408158,153.24,153.22,17.42693474]
[1745577453327,15.74,153.25,153.19,24.36346077]
[1745577453525,15.74,153.25,153.23,17.42693474]
[1745577453726,17.04408158,153.3,153.24,17.42693474]
[1745577453944,17.04408158,153.3,153.27,17.42693474]
[1745577454152,17.04408158,153.3,153.26,17.42693474]
[1745577454522,17.42693474,153.27,153.23,6.52597864]
[1745577454861,18.73101632,153.26,153.21,23.72903474]
[1745577455071,17.42693474,153.24,153.2,17.42693474]
[1745577455359,1.30408158,153.23,153.19,18.94303474]
[1745577455648,17.42693474,153.23,153.19,18.94303474]
[1745577455947,17.42693474,153.24,153.19,25.47083533]
[1745577456129,1.30408158,153.23,153.19,25.47083533]
[1745577456325,18.73101632,153.23,153.19,1.5161]
[1745577456528,18.73101632,153.23,153.19,25.4708319]
[1745577457051,1.30408158,153.27,153.21,17.42693474]
[1745577457224,43.42693474,153.25,153.2,17.42693474]
[1745577457434,17.42693474,153.23,153.19,25.47081484]
[1745577457631,17.42693474,153.21,153.12,19.08403474]
[1745577457958,17.42693474,153.24,153.2,17.42693474]
[1745577458121,1.30408158,153.23,153.2,23.95419387]
[1745577458327,27.30408158,153.24,153.22,17.42693474]
[1745577458523,27.30408158,153.24,153.21,17.42693474]
[1745577458725,27.30408158,153.24,153.2,23.95419387]
[1745577458959,44.73101632,153.24,153.16,6.52911987]
[1745577459248,17.42693474,153.23,153.18,17.42693474]
[1745577459557,17.42693474,153.23,153.19,17.42693474]
[1745577459558,1.30408158,153.23,153.19,17.42693474]
[1745577460166,1.30408158,153.23,153.19,23.9547407]
[1745577460937,1.30408158,153.23,153.19,17.42693474]
[1745577461257,18.73101632,153.23,153.19,17.42693474]
[1745577461569,18.73101632,153.23,153.14,22.854904]
[1745577461756,26.0,153.21,153.14,22.854904]
[1745577461923,27.30408158,153.21,153.14,22.854904]
[1745577462131,17.42693474,153.2,153.15,17.42693474]
[1745577462346,6.5261423,153.23,153.15,17.42693474]
[1745577462347,1.30408158,153.19,153.15,17.42693474]
[1745577462552,17.42693474,153.2,153.15,17.42693474]
[1745577462839,18.73101632,153.21,153.16,17.42693474]
[1745577463027,1.30408158,153.2,153.16,17.42693474]
[1745577463443,18.73101632,153.2,153.15,17.42693474]
[1745577463654,26.0,153.22,153.17,17.42693474]
[1745577463655,27.30408158,153.22,153.17,17.42693474]
[1745577463953,17.42693474,153.2,153.15,17.42693474]
[1745577464175,1.30408158,153.19,153.15,17.42693474]
[1745577464468,1.30408158,153.19,153.15,23.95645253]
[1745577464633,1.30408158,153.19,153.15,17.42693474]
[1745577464955,44.73101632,153.19,153.15,17.42693474]
[1745577465161,44.73101632,153.19,153.08,1.33574284]
[1745577465162,26.0,153.16,153.08,1.33574284]
[1745577465363,1.1584325,153.15,153.14,17.42693474]
[1745577466348,1.1584325,153.15,153.14,23.95690731]
[1745577466860,1.1584325,153.15,153.14,17.42693474]
[1745577467066,1.1584325,153.15,153.12,1.5081]
[1745577467436,27.1584325,153.15,153.12,18.93503474]
[1745577467737,27.1584325,153.15,153.12,1.5081]
[1745577468072,1.30408158,153.14,153.1,17.42693474]
[1745577468368,1.30408158,153.14,153.09,17.42693474]
[1745577468369,1.1584325,153.13,153.09,17.42693474]
[1745577469072,1.30408158,153.12,153.09,17.42693474]
[1745577469265,1.1584325,153.11,153.08,8.21410197]
[1745577469462,1.1584325,153.11,153.08,19.10863474]
[1745577469765,1.1584325,153.11,153.09,17.42693474]
[1745577469965,1.1584325,153.11,153.08,8.21421172]
[1745577470464,1.1584325,153.11,153.09,17.42693474]
[1745577470660,1.1584325,153.11,153.08,8.21421172]
[1745577470866,1.1584325,153.11,153.1,17.42693474]
[1745577472245,1.1584325,153.11,153.1,23.95861338]
[1745577475046,26.0,153.17,153.16,17.42693474]
[1745577476480,26.0,153.17,153.15,23.95644915]
[1745577476655,26.0,153.17,153.15,6.52951441]
[1745577476967,26.0,153.17,153.15,17.42693474]
[1745577477643,26.0,153.17,153.14,17.42693474]
[1745577477838,26.0,153.17,153.14,6.52978415]
[1745577478044,26.0,153.17,153.15,17.42693474]
[1745577478269,26.0,153.17,153.14,23.95671889]
[1745577478768,15.36,153.21,153.16,17.42693474]
[1745577478769,1.30408158,153.2,153.16,17.42693474]
[1745577478984,32.78693474,153.21,153.14,6.52978415]
[1745577478985,16.66408158,153.21,153.18,17.42693474]
[1745577479261,17.42693474,153.23,153.18,17.42693474]
[1745577479467,18.73101632,153.22,153.18,17.42693474]
[1745577479765,44.73101632,153.22,153.18,17.42693474]
[1745577479970,44.73101632,153.22,153.16,6.52911987]
[1745577480170,44.73101632,153.22,153.17,17.42693474]
[1745577480371,44.73101632,153.22,153.18,17.42693474]
[1745577480972,44.73101632,153.22,153.16,17.42693474]
[1745577480973,17.42693474,153.2,153.16,17.42693474]
[1745577481143,18.73101632,153.19,153.15,18.96393474]
[1745577481344,17.42693474,153.17,153.12,6.53082549]
[1745577481543,17.42693474,153.17,153.12,23.95776023]
[1745577482151,17.42693474,153.17,153.13,17.42693474]
[1745577482468,18.73101632,153.16,153.11,31.63188624]
[1745577482885,17.42693474,153.15,153.11,25.50728624]
[1745577483171,17.42693474,153.14,153.1,23.95846794]
[1745577483673,1.30408158,153.16,153.13,17.42693474]
[1745577484086,1.30408158,153.16,153.14,17.42693474]
[1745577484274,44.73101632,153.18,153.14,17.42693474]
[1745577484845,26.0,153.18,153.15,17.42693474]
[1745577485457,16.66408158,153.19,153.16,17.42693474]
[1745577486165,15.36,153.19,153.16,17.42693474]
[1745577486673,15.36,153.19,153.16,23.95588636]
[1745577486972,1.30408158,153.23,153.18,17.42693474]
[1745577487282,15.36,153.25,153.22,17.42693474]
[1745577487571,15.36,153.25,153.23,17.42693474]
[1745577488081,15.36,153.25,153.23,23.95273129]
[1745577488375,16.66408158,153.25,153.22,23.95337375]
[1745577489277,15.36,153.25,153.23,17.42693474]
[1745577491381,15.36,153.25,153.22,23.9534395]
[1745577491584,18.73101632,153.24,153.19,17.42693474]
[1745577491971,1.30408158,153.24,153.23,17.42693474]
[1745577492284,17.42693474,153.25,153.21,17.42693474]
[1745577492462,1.30408158,153.26,153.23,17.42693474]
[1745577492663,26.0,153.27,153.24,17.42693474]
[1745577492979,0.063,153.29,153.26,17.42693474]
[1745577493377,1.36708158,153.29,153.26,17.42693474]
[1745577493559,17.42693474,153.28,153.24,17.42693474]
[1745577496597,17.42693474,153.23,153.2,6.52741514]
[1745577497069,17.42693474,153.24,153.2,6.52741514]
[1745577497271,1.30408158,153.23,153.2,6.52741514]
[1745577497859,17.42693474,153.24,153.2,6.52741514]
[1745577498073,17.42693474,153.26,153.21,17.42693474]
[1745577498382,1.30408158,153.25,153.21,17.42693474]
[1745577498586,0.20516157,153.29,153.23,17.42693474]
[1745577498587,26.0,153.24,153.23,17.42693474]
[1745577498985,26.0,153.24,153.22,17.42693474]
[1745577499194,26.0,153.24,153.23,6.52613717]
[1745577500284,0.20516157,153.29,153.23,23.95307191]
[1745577500285,18.79401632,153.29,153.23,23.95307191]
[1745577500587,26.0,153.28,153.24,17.42693474]
[1745577501088,26.0,153.27,153.24,17.42693474]
[1745577501473,26.0,153.27,153.25,17.42693474]
[1745577501666,0.063,153.29,153.26,17.42693474]
[1745577501868,0.063,153.29,153.27,17.42693474]
[1745577502909,0.063,153.29,153.28,17.42693474]
[1745577503295,0.063,153.29,153.28,6.52400835]
[1745577503486,0.063,153.29,153.27,23.95133545]
[1745577504501,0.063,153.29,153.28,17.42693474]
[1745577505100,0.063,153.29,153.27,6.52440071]
[1745577505307,0.063,153.29,153.27,23.95133545]
[1745577508410,0.063,153.29,153.26,6.52469242]
[1745577508723,43.48993474,153.29,153.24,23.95264604]
[1745577508891,43.48993474,153.29,153.25,17.42693474]
[1745577509811,17.48993474,153.29,153.25,17.42693474]
[1745577510190,0.063,153.29,153.26,6.52485971]
[1745577510517,0.063,153.29,153.25,23.95206578]
[1745577511424,0.063,153.29,153.24,6.52560063]
[1745577511586,17.48993474,153.29,153.24,6.52560063]
[1745577511788,17.48993474,153.29,153.25,17.42693474]
[1745577512090,17.48993474,153.29,153.24,6.52560063]
[1745577512091,0.063,153.29,153.27,17.42693474]
[1745577512294,0.063,153.29,153.24,22.83987888]
[1745577512493,0.063,153.29,153.27,17.42693474]
[1745577514797,0.063,153.29,153.28,44.26075138]
[1745577521398,0.063,153.29,153.28,8.10240835]
[1745577521629,0.063,153.29,153.28,18.991293]
[1745577523224,0.063,153.29,153.28,10.88888465]
[1745577523423,0.063,153.29,153.24,1.5354]
[1745577523617,0.063,153.29,153.25,10.88888465]
[1745577524326,0.063,153.29,153.27,10.88888465]
[1745577524511,0.063,153.29,153.26,10.88888465]
[1745577525101,0.063,153.29,153.25,6.52486635]
[1745577525102,0.063,153.29,153.25,17.413751]
[1745577525421,17.44248407,153.27,153.23,17.44248407]
[1745577525625,17.44248407,153.27,153.22,23.96904718]
[1745577526005,17.44248407,153.26,153.22,17.44248407]
[1745577526194,17.44248407,153.26,153.21,6.52686822]
[1745577526397,17.44248407,153.24,153.2,23.96982327]
[1745577527113,17.44248407,153.25,153.2,23.96982327]
[1745577527424,17.44248407,153.24,153.19,6.52773761]
[1745577527629,17.44248407,153.23,153.18,6.52810516]
[1745577527804,17.44248407,153.22,153.18,23.97058923]
[1745577528001,17.44248407,153.23,153.18,6.52810516]
[1745577528204,1.30408158,153.24,153.17,6.52853644]
[1745577528205,17.44248407,153.22,153.17,6.52853644]
[1745577528526,17.44248407,153.19,153.11,39.01422281]
[1745577528699,17.44248407,153.19,153.15,17.44248407]
[1745577528904,17.44248407,153.19,153.12,6.53082549]